bitfinex/quotes_SOLUSD_20241123
["timestamp","ask_amount","ask_price","bid_price","bid_amount"]
[1732388280135,5.69769794,255.83,255.79,14.02294519]
[1732388280835,5.69769794,255.83,255.79,6.11148232]
[1732388281426,7.59968594,255.81,255.78,6.11148232]
[1732388281628,7.59968594,255.81,255.77,6.11148232]
[1732388281945,7.59968594,255.79,255.76,6.11148232]
[1732388282131,7.59968594,255.77,255.75,113.98939118]
[1732388282621,7.59968594,255.77,255.75,107.87790886]
[1732388284447,7.59968594,255.77,255.75,100.0]
[1732388286134,23.776884,255.89,255.75,100.0]
[1732388286435,7.59968594,255.8,255.75,100.0]
[1732388287641,7.59968594,255.8,255.76,6.11148232]
[1732388290536,7.59968594,255.78,255.76,6.11148232]
[1732388294609,7.59968594,255.81,255.77,6.11148232]
[1732388295143,9.8452,255.9,255.77,6.11148232]
[1732388295317,7.59968594,255.82,255.77,6.11148232]
[1732388295639,7.59968594,255.82,255.79,6.11148232]
[1732388296441,7.59968594,255.82,255.8,6.11148232]
[1732388299613,7.59968594,255.82,255.81,3.896]
[1732388302030,7.59968594,255.82,255.8,6.11148232]
[1732388302834,7.59968594,255.82,255.81,6.11148232]
[1732388303037,7.59968594,255.84,255.81,6.11148232]
[1732388304027,7.59968594,255.82,255.81,6.11148232]
[1732388307739,7.59968594,255.82,255.8,6.11148232]
[1732388308137,7.59968594,255.82,255.81,6.11148232]
[1732388316540,7.59968594,255.82,255.8,6.11148232]
[1732388316749,7.59968594,255.81,255.8,6.11148232]
[1732388316936,7.59968594,255.81,255.78,6.11148232]
[1732388317249,7.59968594,255.81,255.79,6.11148232]
[1732388317827,7.59968594,255.81,255.78,6.11148232]
[1732388318027,7.59968594,255.81,255.79,6.11148232]
[1732388318727,7.59968594,255.81,255.78,6.11148232]
[1732388319038,23.776884,255.93,255.78,6.11148232]
[1732388319238,7.59968594,255.79,255.78,6.11148232]
[1732388321554,23.776884,255.93,255.78,6.11148232]
[1732388321741,7.59968594,255.79,255.78,6.11148232]
[1732388324046,23.776884,255.93,255.78,6.11148232]
[1732388324253,7.59968594,255.8,255.79,6.11148232]
[1732388324635,7.59968594,255.82,255.79,6.11148232]
[1732388325538,7.59968594,255.82,255.8,6.11148232]
[1732388325934,7.59968594,255.82,255.79,6.11148232]
[1732388326139,7.59968594,255.8,255.79,6.11148232]
[1732388326753,7.59968594,255.8,255.79,6.12622851]
[1732388326970,7.59968594,255.8,255.78,12.22296464]
[1732388327459,7.59968594,255.8,255.79,6.12650819]
[1732388328349,7.59968594,255.8,255.79,6.12654793]
[1732388330862,7.59968594,255.8,255.78,12.22296464]
[1732388331456,7.59968594,255.8,255.78,14.92482307]
[1732388331656,7.59968594,255.8,255.79,6.12672902]
[1732388332240,7.59968594,255.8,255.78,12.22296464]
[1732388333163,7.59968594,255.82,255.78,12.22296464]
[1732388333456,7.59968594,255.82,255.8,6.12687879]
[1732388333673,23.776884,255.93,255.8,6.12687879]
[1732388333971,7.59968594,255.81,255.79,12.22296464]
[1732388334254,7.59968594,255.81,255.8,6.12677496]
[1732388334499,7.59968594,255.81,255.79,12.22296464]
[1732388335541,7.59968594,255.81,255.8,18.81988164]
[1732388335742,7.59968594,255.81,255.8,6.596917]
[1732388335961,7.59968594,255.81,255.8,2.701917]
[1732388337035,7.59968594,255.81,255.79,12.22296464]
[1732388337241,7.59968594,255.81,255.8,3.895]
[1732388337435,7.59968594,255.81,255.8,2.701917]
[1732388337847,7.59968594,255.81,255.79,12.22296464]
[1732388339142,7.59968594,255.81,255.8,6.12835494]
[1732388340257,7.59968594,255.81,255.79,12.22296464]
[1732388340457,7.59968594,255.81,255.8,6.12888861]
[1732388340649,7.59968594,255.81,255.79,12.22296464]
[1732388340971,7.59968594,255.81,255.8,6.12888671]
[1732388341841,7.59968594,255.81,255.79,12.22296464]
[1732388343951,23.776884,255.93,255.77,6.13002625]
[1732388344168,23.776884,255.93,255.78,6.13002625]
[1732388344478,7.59968594,255.83,255.78,6.13002625]
[1732388344650,7.59968594,255.83,255.79,6.13002625]
[1732388347562,7.59968594,255.81,255.79,6.13002625]
[1732388349074,7.59968594,255.81,255.78,6.13002625]
[1732388349375,7.59968594,255.83,255.79,6.13002625]
[1732388349669,23.776884,255.93,255.79,6.13002625]
[1732388349858,7.59968594,255.84,255.79,6.13002625]
[1732388351549,7.59968594,255.83,255.79,6.13002625]
[1732388352884,15.9673,256.0,255.78,47.671884]
[1732388353050,7.59968594,255.87,255.81,21.3081]
[1732388353557,7.59968594,255.86,255.81,21.3081]
[1732388354078,7.59968594,255.86,255.85,6.130024]
[1732388354765,7.59968594,255.87,255.85,6.130024]
[1732388356082,7.59968594,255.86,255.85,6.130024]
[1732388356279,7.59968594,255.86,255.84,6.130024]
[1732388356572,30.39874376,255.97,255.83,6.130024]
[1732388356573,7.59968594,255.85,255.83,6.130024]
[1732388356790,7.59968594,255.84,255.83,6.130024]
[1732388358951,5.65768594,255.84,255.82,7.92222925]
[1732388359183,5.65768594,255.84,255.81,21.3081]
[1732388362187,5.65768594,255.84,255.81,35.12991649]
[1732388364192,23.776884,255.96,255.81,28.93411649]
[1732388364522,7.59968594,255.83,255.81,7.69179249]
[1732388364791,7.59968594,255.83,255.78,6.130024]
[1732388366269,7.59968594,255.83,255.79,6.130024]
[1732388366588,7.59968594,255.83,255.78,6.130024]
[1732388366982,7.59968594,255.83,255.79,20.0]
[1732388368586,7.59968594,255.83,255.79,26.130024]
[1732388368889,7.59968594,255.83,255.81,6.130024]
[1732388374098,7.59968594,255.83,255.82,20.0]
[1732388376697,7.59968594,255.83,255.82,26.130024]
[1732388376897,7.59968594,255.83,255.82,20.0]
[1732388377091,7.59968594,255.83,255.82,26.130024]
[1732388379971,7.59968594,255.83,255.82,30.025024]
[1732388380176,7.59968594,255.83,255.82,26.130024]
[1732388380389,7.59968594,255.83,255.82,6.130024]
[1732388383478,7.59968594,255.83,255.8,6.130024]
[1732388383677,7.59968594,255.81,255.8,26.130024]
[1732388385099,7.59968594,255.81,255.8,20.0]
[1732388385280,7.59968594,255.81,255.79,26.130024]
[1732388386190,7.59968594,255.81,255.79,6.130024]
[1732388387103,7.59968594,255.81,255.8,6.130024]
[1732388389979,7.59968594,255.81,255.77,2.70338151]
[1732388389980,7.59968594,255.81,255.79,6.130024]
[1732388391885,7.59968594,255.81,255.78,6.130024]
[1732388393099,7.59968594,255.81,255.79,20.0]
[1732388396216,7.59968594,255.81,255.78,26.130024]
[1732388396401,7.59968594,255.81,255.78,20.0]
[1732388397916,7.59968594,255.79,255.78,20.0]
[1732388400713,7.59968594,255.81,255.78,20.0]
[1732388400898,7.59968594,255.79,255.78,20.0]
[1732388401106,7.59968594,255.79,255.77,20.0]
[1732388402712,7.59968594,255.79,255.76,20.0]
[1732388403025,7.59968594,255.77,255.76,20.0]
[1732388404721,7.59968594,255.77,255.75,100.0]
[1732388405307,23.776884,255.76,255.75,100.0]
[1732388411219,31.37656994,255.76,255.75,100.0]
[1732388413401,61.7753137,255.76,255.75,57.01546217]
[1732388413606,31.37656994,255.76,255.75,57.01546217]
[1732388417533,31.37656994,255.76,255.75,14.03092434]
[1732388419429,81.7753137,255.76,255.75,5.72830311]
[1732388420229,23.776884,255.71,255.56,16.3856]
[1732388420427,7.59968594,255.6,255.56,16.3856]
[1732388421106,7.59968594,255.6,255.57,20.0]
[1732388422528,7.59968594,255.6,255.56,24.29355685]
[1732388422704,7.59968594,255.6,255.57,20.0]
[1732388423202,7.59968594,255.58,255.56,16.3856]
[1732388423506,7.59968594,255.58,255.5,16.3856]
[1732388423714,7.59968594,255.57,255.5,16.3856]
[1732388424712,7.59968594,255.57,255.51,20.0]
[1732388425216,7.59968594,255.57,255.5,16.3856]
[1732388425940,10.0,255.72,255.51,38.17840712]
[1732388426238,7.59968594,255.6,255.51,38.17840712]
[1732388428436,7.59968594,255.58,255.51,30.57872118]
[1732388428640,7.59968594,255.58,255.51,5.31501121]
[1732388428940,7.59968594,255.56,255.51,5.31501121]
[1732388429143,7.59968594,255.56,255.5,24.01031047]
[1732388429317,7.59968594,255.54,255.5,24.01031047]
[1732388430532,7.59968594,255.54,255.51,20.0]
[1732388430745,7.59968594,255.54,255.5,24.01031047]
[1732388431625,7.59968594,255.56,255.5,24.01031047]
[1732388432055,7.59968594,255.56,255.46,12.91469715]
[1732388432056,7.59968594,255.51,255.46,5.31501121]
[1732388432240,30.39874376,255.58,255.43,16.0051]
[1732388432241,7.59968594,255.47,255.43,16.0051]
[1732388433218,7.59968594,255.45,255.43,16.0051]
[1732388436122,7.59968594,255.45,255.44,20.0]
[1732388437628,7.59968594,255.48,255.44,20.0]
[1732388438925,7.59968594,255.46,255.44,20.0]
[1732388441044,7.59968594,255.48,255.44,20.0]
[1732388441541,7.59968594,255.45,255.44,20.0]
[1732388441739,30.39874376,255.58,255.44,20.0]
[1732388441740,7.59968594,255.47,255.44,20.0]
[1732388443252,7.59968594,255.45,255.44,20.0]
[1732388444845,7.59968594,255.47,255.44,20.0]
[1732388445740,7.59968594,255.45,255.44,20.0]
[1732388451748,7.59968594,255.47,255.44,20.0]
[1732388457928,7.59968594,255.47,255.42,20.0]
[1732388458245,7.59968594,255.45,255.42,25.31501121]
[1732388459737,7.59968594,255.45,255.43,5.31501121]
[1732388460240,7.59968594,255.45,255.44,20.0]
[1732388461034,9.8452,255.55,255.44,20.0]
[1732388461348,7.59968594,255.47,255.44,25.31501121]
[1732388461651,7.59968594,255.47,255.45,5.31501121]
[1732388462028,7.59968594,255.47,255.46,20.0]
[1732388462346,7.59968594,255.53,255.46,25.31501121]
[1732388462552,7.59968594,255.54,255.48,20.0]
[1732388462727,15.627857,255.61,255.5,20.0]
[1732388462928,7.59968594,255.54,255.51,5.31501121]
[1732388463237,7.59968594,255.54,255.52,20.0]
[1732388464044,7.59968594,255.53,255.52,20.0]
[1732388467230,7.59968594,255.53,255.52,25.31501121]
[1732388467637,7.59968594,255.53,255.52,20.0]
[1732388468048,7.59968594,255.53,255.47,5.31501121]
[1732388468249,7.59968594,255.48,255.47,5.31501121]
[1732388469041,7.59968594,255.48,255.4,5.31501121]
[1732388469356,7.59968594,255.43,255.4,5.31501121]
[1732388470654,7.59968594,255.43,255.41,20.0]
[1732388470859,7.59968594,255.43,255.41,5.31501121]
[1732388471157,7.59968594,255.44,255.43,20.0]
[1732388471542,56.24624376,255.58,255.43,20.0]
[1732388471745,7.59968594,255.48,255.44,5.31501121]
[1732388472059,7.59968594,255.48,255.45,20.0]
[1732388472445,7.59968594,255.46,255.45,20.0]
[1732388477164,7.59968594,255.47,255.45,20.0]
[1732388480446,30.39874376,255.46,255.38,6.12207903]
[1732388480646,7.59968594,255.39,255.38,6.12207903]
[1732388481469,7.59968594,255.39,255.38,11.43709024]
[1732388481644,7.59968594,255.39,255.38,31.43709024]
[1732388483571,7.59968594,255.39,255.38,25.31501121]
[1732388488375,7.59968594,255.39,255.38,4.81501121]
[1732388491968,30.39874376,255.46,255.38,4.81501121]
[1732388492169,7.59968594,255.39,255.38,4.81501121]
[1732388493472,7.59968594,255.39,255.32,4.97482108]
[1732388493669,7.59968594,255.34,255.33,20.0]
[1732388495882,7.59968594,255.37,255.33,20.0]
[1732388496080,7.59968594,255.37,255.34,5.2789001]
[1732388497085,7.59968594,255.38,255.34,5.2789001]
[1732388497379,7.59968594,255.39,255.34,5.2789001]
[1732388497582,7.59968594,255.41,255.35,20.0]
[1732388497884,7.59968594,255.45,255.37,27.59968594]
[1732388498063,7.59968594,255.46,255.38,17.85340712]
[1732388498268,7.59968594,255.46,255.39,27.59968594]
[1732388498586,7.59968594,255.48,255.41,20.0]
[1732388498879,7.59968594,255.48,255.43,20.0]
[1732388499386,7.59968594,255.5,255.43,20.0]
[1732388499680,7.59968594,255.51,255.45,20.0]
[1732388499871,7.59968594,255.52,255.45,25.2789001]
[1732388500060,7.59968594,255.5,255.45,25.2789001]
[1732388502254,7.59968594,255.46,255.44,20.0]
[1732388502456,7.59968594,255.45,255.44,20.0]
[1732388504279,7.59968594,255.46,255.44,20.0]
[1732388507184,7.59968594,255.48,255.44,20.0]
[1732388507491,7.59968594,255.48,255.45,5.2789001]
[1732388507692,7.59968594,255.48,255.46,20.0]
[1732388509695,7.59968594,255.48,255.44,20.0]
[1732388509880,7.59968594,255.46,255.43,20.0]
[1732388510071,7.59968594,255.44,255.43,20.0]
[1732388510285,23.776884,255.57,255.43,25.2789001]
[1732388510469,7.59968594,255.46,255.44,5.2789001]
[1732388510670,7.59968594,255.46,255.45,20.0]
[1732388511889,23.776884,255.57,255.45,20.0]
[1732388512092,7.59968594,255.48,255.45,20.0]
[1732388512387,7.59968594,255.48,255.45,5.2789001]
[1732388512586,6.6516,255.61,255.46,25.2789001]
[1732388512891,7.59968594,255.52,255.46,30.25372118]
[1732388513102,7.59968594,255.5,255.46,30.25372118]
[1732388513262,7.59968594,255.48,255.46,30.25372118]
[1732388513669,7.59968594,255.47,255.46,25.2789001]
[1732388516189,7.59968594,255.48,255.46,25.2789001]
[1732388516373,7.59968594,255.49,255.46,25.2789001]
[1732388517375,7.59968594,255.48,255.46,25.2789001]
[1732388519098,7.59968594,255.47,255.46,25.2789001]
[1732388520302,30.39874376,255.58,255.46,25.2789001]
[1732388520303,7.59968594,255.49,255.46,25.2789001]
[1732388520791,7.59968594,255.49,255.46,30.25372118]
[1732388522128,30.39874376,255.58,255.46,30.25372118]
[1732388522394,7.59968594,255.48,255.46,30.25372118]
[1732388522571,7.59968594,255.47,255.46,30.25372118]
[1732388523573,7.59968594,255.47,255.46,25.2789001]
[1732388523894,7.59968594,255.47,255.42,7.9327316]
[1732388524087,7.59968594,255.43,255.35,16.186]
[1732388524395,7.59968594,255.39,255.35,17.08112993]
[1732388525182,7.59968594,255.39,255.35,16.186]
[1732388525479,7.59968594,255.39,255.36,20.0]
[1732388530092,7.59968594,255.39,255.36,23.776884]
[1732388530597,16.5592,255.53,255.36,23.776884]
[1732388530801,7.59968594,255.41,255.36,23.776884]
[1732388531307,7.59968594,255.39,255.36,23.776884]
[1732388531902,30.39874376,255.45,255.35,24.12013567]
[1732388531903,7.59968594,255.37,255.35,7.93413567]
[1732388532098,7.59968594,255.37,255.32,4.98567788]
[1732388532676,7.59968594,255.33,255.32,4.98567788]
[1732388532871,30.39874376,255.45,255.37,130.20031406]
[1732388533178,30.39874376,255.45,255.28,22.2357]
[1732388533388,7.59968594,255.32,255.28,29.89262355]
[1732388533589,4.49968595,255.32,255.28,34.87830143]
[1732388533996,4.49968595,255.32,255.29,4.98567788]
[1732388535386,7.59968594,255.3,255.28,7.65692355]
[1732388535696,7.59968594,255.31,255.24,4.69864331]
[1732388535894,7.59968594,255.31,255.25,24.98567788]
[1732388536488,7.59968594,255.27,255.25,24.98567788]
[1732388536706,7.59968594,255.27,255.24,7.95036826]
[1732388536877,7.59968594,255.27,255.22,22.2357]
[1732388537278,30.39874376,255.32,255.22,22.2357]
[1732388537279,7.59968594,255.25,255.22,15.7469]
[1732388537497,6.39968594,255.25,255.22,15.7469]
[1732388537695,30.39874376,255.32,255.22,23.73630616]
[1732388537696,7.59968594,255.23,255.22,23.73630616]
[1732388537884,7.59968594,255.23,255.22,7.48940616]
[1732388538091,7.59968594,255.23,255.19,9.68432119]
[1732388538293,7.59968594,255.24,255.2,4.98567788]
[1732388539104,7.59968594,255.24,255.2,24.98567788]
[1732388541490,7.59968594,255.24,255.21,23.776884]
[1732388542090,7.59968594,255.28,255.22,4.98567788]
[1732388542414,7.59968594,255.28,255.23,23.776884]
[1732388546801,7.59968594,255.26,255.23,23.776884]
[1732388549115,7.59968594,255.26,255.24,3.895]
[1732388549301,7.59968594,255.26,255.23,23.776884]
[1732388550200,7.59968594,255.24,255.23,23.776884]
[1732388552315,7.59968594,255.26,255.23,23.776884]
[1732388553597,6.4096,255.35,255.24,20.0]
[1732388553823,9.8452,255.37,255.25,23.776884]
[1732388554113,7.59968594,255.32,255.27,23.776884]
[1732388556110,6.6274,255.41,255.29,23.776884]
[1732388556317,7.59968594,255.32,255.3,20.0]
[1732388556503,7.59968594,255.32,255.31,23.776884]
[1732388557219,9.8452,255.43,255.37,23.776884]
[1732388559302,7.59968594,255.38,255.37,43.776884]
[1732388560501,7.59968594,255.38,255.29,20.0]
[1732388560793,7.59968594,255.34,255.33,20.0]
[1732388561008,7.59968594,255.34,255.33,43.776884]
[1732388566202,7.59968594,255.35,255.34,23.776884]
[1732388567228,7.59968594,255.35,255.34,48.76256188]
[1732388571925,9.8452,255.46,255.35,20.0]
[1732388572134,30.39874376,255.45,255.36,23.776884]
[1732388572331,30.39874376,255.45,255.35,20.0]
[1732388572624,30.39874376,255.45,255.37,20.0]
[1732388572840,7.59968594,255.38,255.37,20.0]
[1732388573532,30.39874376,255.45,255.38,20.0]
[1732388573710,7.59968594,255.39,255.37,20.0]
[1732388574035,7.59968594,255.38,255.37,43.776884]
[1732388574328,7.59968594,255.38,255.34,4.98567788]
[1732388574522,7.59968594,255.35,255.34,48.76256188]
[1732388577910,7.59968594,255.35,255.34,56.70604525]
[1732388578729,7.59968594,255.35,255.34,27.94348337]
[1732388579037,7.59968594,255.35,255.34,7.94348337]
[1732388579240,7.59968594,255.35,255.27,11.02707788]
[1732388579443,7.59968594,255.29,255.28,4.98567788]
[1732388580213,7.59968594,255.29,255.28,48.76256188]
[1732388583426,7.59968594,255.29,255.28,43.776884]
[1732388584022,7.59968594,255.29,255.25,24.69864331]
[1732388584225,7.59968594,255.26,255.25,4.69864331]
[1732388584424,7.59968594,255.26,255.18,6.12207903]
[1732388584626,7.59968594,255.19,255.18,9.68432119]
[1732388584835,10.0,255.31,255.19,4.98567788]
[1732388585335,16.073,255.31,255.18,4.69864331]
[1732388586147,7.59968594,255.19,255.18,12.47074014]
[1732388586647,37.9984297,255.19,255.18,7.77209683]
[1732388586831,37.9984297,255.19,255.13,4.98567788]
[1732388587032,7.59968594,255.14,255.13,4.98567788]
[1732388588534,7.59968594,255.14,255.13,28.76256188]
[1732388589434,7.59968594,255.14,255.13,48.76256188]
[1732388590244,7.59968594,255.14,255.13,28.76256188]
[1732388590640,7.59968594,255.14,255.13,48.76256188]
[1732388591922,7.59968594,255.14,255.13,43.776884]
[1732388594438,7.59968594,255.16,255.14,43.776884]
[1732388594640,9.8452,255.3,255.14,48.73150633]
[1732388594947,7.59968594,255.2,255.15,4.95462233]
[1732388595142,7.59968594,255.2,255.17,20.0]
[1732388595334,7.59968594,255.22,255.18,23.776884]
[1732388595532,7.59968594,255.22,255.21,20.0]
[1732388595922,10.0,255.36,255.24,23.776884]
[1732388596133,7.59968594,255.26,255.25,20.0]
[1732388596847,7.59968594,255.26,255.19,43.776884]
[1732388597048,7.59968594,255.26,255.19,48.73150633]
[1732388597219,10.0,255.36,255.19,48.73150633]
[1732388597423,7.59968594,255.24,255.19,48.73150633]
[1732388600854,9.8452,255.37,255.29,137.8]
[1732388601052,7.59968594,255.29,255.21,43.776884]
[1732388601342,7.59968594,255.29,255.22,4.95462233]
[1732388601541,7.59968594,255.29,255.25,23.776884]
[1732388601746,30.39874376,255.32,255.26,20.0]
[1732388601936,7.59968594,255.27,255.26,20.0]
[1732388602241,7.59968594,255.27,255.26,43.776884]
[1732388602452,7.59968594,255.29,255.27,23.776884]
[1732388602655,7.59968594,255.29,255.26,43.776884]
[1732388602656,7.59968594,255.29,255.28,43.776884]
[1732388604735,7.59968594,255.29,255.24,20.0]
[1732388604936,7.59968594,255.26,255.25,23.776884]
[1732388605142,7.59968594,255.26,255.25,43.776884]
[1732388607454,7.59968594,255.28,255.26,20.0]
[1732388607750,7.59968594,255.28,255.27,43.776884]
[1732388607956,10.0,255.41,255.28,20.0]
[1732388608256,19.8452,255.43,255.3,20.0]
[1732388609253,7.59968594,255.31,255.3,20.0]
[1732388611248,19.8452,255.43,255.25,7.97301802]
[1732388611249,9.8452,255.43,255.32,20.0]
[1732388611450,7.59968594,255.33,255.32,43.776884]
[1732388611848,7.59968594,255.33,255.26,4.95462233]
[1732388612178,9.8452,255.43,255.28,20.0]
[1732388612456,7.59968594,255.32,255.3,20.0]
[1732388612635,9.8452,255.43,255.32,20.0]
[1732388612830,7.59968594,255.33,255.32,43.776884]
[1732388614051,7.59968594,255.33,255.3,20.0]
[1732388614242,7.59968594,255.31,255.3,20.0]
[1732388614644,7.59968594,255.31,255.3,43.776884]
[1732388615061,30.39874376,255.45,255.31,23.776884]
[1732388615365,7.59968594,255.33,255.32,23.776884]
[1732388615542,30.39874376,255.45,255.37,130.20031406]
[1732388615749,7.59968594,255.38,255.32,20.0]
[1732388615952,30.39874376,255.45,255.34,43.776884]
[1732388615953,7.59968594,255.35,255.34,43.776884]
[1732388617737,7.59968594,255.39,255.37,23.776884]
[1732388617946,7.59968594,255.39,255.38,43.776884]
[1732388618347,6.0533,255.5,255.39,23.776884]
[1732388618555,7.59968594,255.41,255.4,43.776884]
[1732388619062,7.59968594,255.41,255.4,23.776884]
[1732388620458,7.59968594,255.41,255.39,4.95462233]
[1732388622063,10.0,255.53,255.39,4.95462233]
[1732388622264,7.59968594,255.4,255.39,4.95462233]
[1732388622865,7.26401187,255.4,255.39,4.95462233]
[1732388624171,7.26401187,255.4,255.39,48.73150633]
[1732388626451,7.59968594,255.42,255.39,48.73150633]
[1732388626666,7.59968594,255.42,255.39,28.73150633]
[1732388629261,9.8452,255.55,255.4,23.776884]
[1732388629460,7.59968594,255.47,255.42,23.776884]
[1732388629644,7.59968594,255.47,255.42,28.73150633]
[1732388630648,7.59968594,255.47,255.44,23.776884]
[1732388630847,9.8452,255.61,255.44,23.776884]
[1732388631172,7.59968594,255.48,255.46,23.776884]
[1732388632046,9.8452,255.61,255.46,23.776884]
[1732388632248,7.59968594,255.47,255.46,23.776884]
[1732388632456,9.8452,255.61,255.52,130.20031406]
[1732388632655,9.8452,255.61,255.46,23.776884]
[1732388632656,7.59968594,255.53,255.46,23.776884]
[1732388632950,7.59968594,255.47,255.46,23.776884]
[1732388633158,7.59968594,255.47,255.46,43.776884]
[1732388634065,3.60223962,255.47,255.46,43.776884]
[1732388634576,3.60223962,255.47,255.46,20.0]
[1732388636467,3.60223962,255.47,255.42,4.95462233]
[1732388636666,7.59968594,255.43,255.4,23.776884]
[1732388636851,7.59968594,255.41,255.4,43.776884]
[1732388637047,10.0,255.59,255.42,23.776884]
[1732388637253,7.59968594,255.43,255.42,43.776884]
[1732388639152,10.0,255.59,255.43,20.0]
[1732388639353,7.59968594,255.44,255.43,43.776884]
[1732388643583,7.59968594,255.44,255.42,20.0]
[1732388644690,7.59968594,255.43,255.42,20.0]
[1732388644867,7.59968594,255.43,255.42,43.776884]
[1732388645572,7.59968594,255.43,255.4,4.95462233]
[1732388645885,40.39874376,255.58,255.38,23.08166226]
[1732388645886,7.59968594,255.41,255.38,23.08166226]
[1732388646062,7.59968594,255.39,255.38,23.08166226]
[1732388646985,10.0,255.56,255.38,46.85854626]
[1732388647190,7.59968594,255.41,255.39,48.73150633]
[1732388647365,10.0,255.56,255.46,20.0]
[1732388647679,7.59968594,255.47,255.39,48.73150633]
[1732388647870,7.59968594,255.41,255.39,48.73150633]
[1732388648179,7.59968594,255.43,255.39,48.73150633]
[1732388648559,7.59968594,255.45,255.39,48.73150633]
[1732388648769,7.59968594,255.45,255.39,52.96179074]
[1732388651183,7.59968594,255.43,255.39,52.96179074]
[1732388651371,7.59968594,255.43,255.39,48.73150633]
[1732388652985,7.59968594,255.41,255.39,48.73150633]
[1732388654068,7.59968594,255.41,255.39,24.95462233]
[1732388656971,6.0718,255.54,255.4,23.776884]
[1732388657229,7.59968594,255.46,255.43,20.0]
[1732388662099,30.39874376,255.58,255.46,23.776884]
[1732388662279,7.59968594,255.49,255.47,20.0]
[1732388663591,7.59968594,255.49,255.46,23.776884]
[1732388663791,6.0651,255.66,255.54,137.8]
[1732388664000,7.59968594,255.56,255.49,23.776884]
[1732388664182,7.59968594,255.56,255.49,28.73150633]
[1732388664694,9.8452,255.67,255.51,23.776884]
[1732388664890,7.59968594,255.57,255.51,28.73150633]
[1732388665391,7.59968594,255.57,255.52,3.903]
[1732388665594,7.59968594,255.57,255.53,23.776884]
[1732388666106,6.0651,255.72,255.55,23.776884]
[1732388666308,7.59968594,255.64,255.57,23.776884]
[1732388666603,7.59968594,255.66,255.59,23.776884]
[1732388666914,7.59968594,255.66,255.6,4.95462233]
[1732388667090,7.59968594,255.69,255.61,23.776884]
[1732388667603,7.59968594,255.69,255.63,23.776884]
[1732388668103,7.59968594,255.69,255.62,27.679884]
[1732388668997,7.59968594,255.69,255.64,3.903]
[1732388669201,7.59968594,255.69,255.61,23.776884]
[1732388669385,7.59968594,255.69,255.62,7.59968594]
[1732388669595,7.59968594,255.69,255.63,23.776884]
[1732388670374,15.9103,255.79,255.61,23.776884]
[1732388670375,7.59968594,255.67,255.61,23.776884]
[1732388672698,7.59968594,255.65,255.6,9.44727585]
[1732388672997,7.59968594,255.63,255.6,4.95462233]
[1732388673310,7.59968594,255.61,255.56,15.4624]
[1732388674384,7.59968594,255.61,255.57,23.776884]
[1732388674587,7.59968594,255.59,255.56,15.4624]
[1732388676088,7.59968594,255.59,255.55,7.9638034]
[1732388676294,7.59968594,255.59,255.55,23.776884]
[1732388676493,30.39874376,255.71,255.54,4.95462233]
[1732388676494,7.59968594,255.57,255.54,4.95462233]
[1732388676693,9.8452,255.67,255.54,12.81609087]
[1732388676694,7.59968594,255.55,255.54,12.81609087]
[1732388677015,7.59968594,255.55,255.54,4.95462233]
[1732388678001,7.59968594,255.55,255.5,7.60800937]
[1732388678200,7.59968594,255.51,255.48,4.49265352]
[1732388678385,7.59968594,255.49,255.48,4.49265352]
[1732388678704,7.59968594,255.49,255.42,4.49265352]
[1732388678705,11.92106417,255.49,255.42,4.49265352]
[1732388678906,11.92106417,255.47,255.42,9.44727585]
[1732388679108,11.92106417,255.49,255.42,4.49265352]
[1732388679286,11.92106417,255.49,255.43,4.95462233]
[1732388680603,11.92106417,255.51,255.44,40.19060169]
[1732388680919,11.92106417,255.51,255.45,4.95462233]
[1732388681302,11.92106417,255.55,255.46,35.69794817]
[1732388681505,11.92106417,255.55,255.49,23.776884]
[1732388682212,11.92106417,255.55,255.48,23.776884]
[1732388682795,11.92106417,255.53,255.48,23.776884]
[1732388684090,11.92106417,255.53,255.47,20.0]
[1732388684304,11.92106417,255.53,255.48,28.73150633]
[1732388686313,11.92106417,255.53,255.48,23.776884]
[1732388686616,11.92106417,255.58,255.48,23.776884]
[1732388686617,11.92106417,255.51,255.48,23.776884]
[1732388687122,11.92106417,255.53,255.48,23.776884]
[1732388689704,11.92106417,255.55,255.48,39.459184]
[1732388690008,11.92106417,255.55,255.49,20.0]
[1732388692023,9.8452,255.67,255.5,23.776884]
[1732388692226,11.92106417,255.58,255.52,23.776884]
[1732388694537,11.92106417,255.58,255.51,23.776884]
[1732388696234,11.92106417,255.56,255.49,23.776884]
[1732388696434,11.92106417,255.56,255.5,20.0]